fUSD/lending_fUSD_20240511
["ID","MTS","AMOUNT","RATE_DAILY","PERIOD"]
[326826693,1715461832214,-93301.1161,0.00012784,2]
[326826694,1715461832223,-273.975,0.00012852,2]
[326826696,1715461832233,-37793.0,0.00012852,2]
[326826698,1715461832242,-9832.34195956,0.00012866,2]
[326826700,1715461832251,-200.0,0.00012896,2]
[326826702,1715461832260,-1000.0,0.00012896,2]
[326826704,1715461832269,-551.1046,0.000129,2]
[326826706,1715461832278,-194.48369157,0.000129,2]
[326826708,1715461832287,-177.44367573,0.000129,2]
[326826710,1715461832296,-172.5422854,0.000129,2]
[326826712,1715461832306,-3998.23418724,0.000129,2]
[326826714,1715461832316,-1000.0,0.000129,2]
[326826716,1715461832325,-2263.97818187,0.000129,2]
[326826718,1715461832334,-383.72460685,0.000129,2]
[326826720,1715461832343,-150.0,0.00012966,2]
[326826722,1715461832352,-151.082,0.00012985,2]
[326826724,1715461832361,-1227.0,0.00012985,2]
[326826726,1715461832370,-151.48,0.0001299,2]
[326826728,1715461832379,-155.0,0.00012996,2]
[326826730,1715461832388,-1476.26327679,0.00012997,2]
[326826732,1715461832397,-2218.69268549,0.00012998,2]
[326826734,1715461832406,-782.5278252,0.00012998,2]
[326826736,1715461832415,-408.64578529,0.00012998,2]
[326826738,1715461832424,-468.40106323,0.00012998,2]
[326826740,1715461832433,-317.50955943,0.00012999,2]
[326826742,1715461832442,-3024.88433628,0.00012999,2]
[326826744,1715461832452,-306.5091332,0.00012999,2]
[326826746,1715461832461,-2357.86048009,0.00012999,2]
[326826748,1715461832471,-1070.78103848,0.00012999,3]
[326826750,1715461832480,-1070.78103849,0.00012999,3]
[326826752,1715461832489,-1070.78103848,0.00012999,3]
[326826754,1715461832498,-509.0,0.00013,2]
[326826756,1715461832507,-155800.1251773,0.00013,2]
[326826759,1715461832519,-321.31755,0.00013,2]
[326826763,1715461832544,-14667.3867343,0.00013,2]
[326826765,1715461832555,-23385.69203154,0.00013,2]
[326826767,1715461832566,-24202.18642409,0.00013,2]
[326826768,1715461832576,-450.037073,0.00013,2]
[326826769,1715461832622,-5581.70489211,0.00013,2]
[326826770,1715461832633,-1608.98561684,0.00013,2]
[326826771,1715461832645,-1987.29412416,0.00013,2]
[326826772,1715461832656,-6127.228,0.00013,2]
[326826773,1715461832668,-4822.69,0.00013,2]
[326826774,1715461832679,-1386.56964087,0.00013,2]
[326826775,1715461832701,-308.14008547,0.00013,2]
[326826784,1715461838092,-646.28503229,0.00013,2]
[326826792,1715461843082,-298.76282549,0.000129,2]
[326826793,1715461843092,-14417.04430653,0.00013,2]
[326826794,1715461843238,-286460.40025587,0.00013,2]
[326826795,1715461843247,-65006.94245129,0.00013,2]
[326826796,1715461843491,-1143.56049013,0.00013,2]
[326826804,1715461845948,-900.12536471,0.00013,2]
[326826805,1715461846350,-0.08245409,0.00013,2]
[326826806,1715461846361,-9478.91193326,0.00013,2]
[326826807,1715461846383,-900.8999995,0.00013,2]
[326826815,1715461853820,506.7,0.00010959,2]
[326826816,1715462314753,250.0,0.00011992,2]
[326826817,1715462372415,200.0,0.00011462,2]
[326826818,1715462372446,234.69981702,0.00011985,2]
[326826819,1715462464663,847.98639445,0.00011911,2]
[326826820,1715462469280,847.98639445,0.00011948,2]
[326826821,1715462474267,847.98639445,0.00011985,2]
[326826822,1715462499060,150.0,0.00011923,2]
[326826823,1715462516049,264.82133589,0.00011863,2]
[326826824,1715462544307,1356.51966374,0.00011993,2]
[326826842,1715463032375,-200.75109722,0.00011655,2]
[326826843,1715463032385,-1740.42904961,0.00011655,2]
[326826858,1715463038376,-0.00728762,0.00011655,2]
[326826859,1715463038541,-1100.0,0.00011655,2]
[326826860,1715463038756,-0.4698602,0.00011655,2]
[326826862,1715463040503,-184.64902609,0.00011655,2]
[326826863,1715463040513,-1052.52383292,0.00011656,2]
[326826864,1715463040522,-155.0,0.00011656,2]
[326826865,1715463040531,-302.22018432,0.00011657,2]
[326826866,1715463040540,-1787.76004597,0.00011659,2]
[326826867,1715463040550,-171.06171806,0.00011662,2]
[326826868,1715463040559,-35331.12825681,0.0001171,2]
[326826869,1715463040568,-150.0,0.0001171,2]
[326826870,1715463040578,-150.0,0.0001171,2]
[326826871,1715463040587,-200.0,0.00011711,2]
[326826872,1715463040596,-1852.42,0.00011765,2]
[326826873,1715463040606,-2709.14,0.00011776,2]
[326826874,1715463040616,-329.08,0.00011797,2]
[326826875,1715463040625,-250.0,0.00011808,2]
[326826876,1715463040634,-250.0,0.00011827,2]
[326826877,1715463040645,-499.99,0.00011827,2]
[326826878,1715463040658,-905.94,0.00011827,2]
[326826879,1715463040667,-8947.88033626,0.00011993,2]
[326826880,1715463040676,-800.0,0.00012011,2]
[326826881,1715463040687,-880.67503912,0.00012419,2]
[326826882,1715463040698,-16268.41916988,0.00012419,2]
[326826883,1715463040708,-275.3788,0.00012419,2]
[326826884,1715463040717,-2275.52918531,0.00012419,2]
[326826885,1715463040731,-2586.95666969,0.00012419,2]
[326826886,1715463040741,-565.388727,0.00012419,2]
[326826887,1715463040751,-386.89277,0.00012419,2]
[326826888,1715463040760,-2502.75920015,0.00012419,2]
[326826889,1715463041802,-5073.36423485,0.00012419,2]
[326826890,1715463041811,-300.0,0.000125,4]
[326826891,1715463041821,-17149.094209,0.00012574,2]
[326826892,1715463041830,-275.3788,0.00012574,2]
[326826893,1715463041839,-4862.485855,0.00012574,2]
[326826894,1715463041848,-565.388727,0.00012574,2]
[326826895,1715463041858,-386.89277,0.00012574,2]
[326826896,1715463041867,-7576.123435,0.00012574,2]
[326826897,1715463041877,-600.0,0.000126,4]
[326826898,1715463041887,-352.51,0.000127,2]
[326826899,1715463041897,-900.0,0.000127,4]
[326826900,1715463041907,-1000.0,0.000127,2]
[326826901,1715463041916,-17149.094209,0.00012729,2]
[326826902,1715463041925,-275.3788,0.00012729,2]
[326826903,1715463041934,-4862.485855,0.00012729,2]
[326826904,1715463041943,-565.388727,0.00012729,2]
[326826905,1715463041953,-386.89277,0.00012729,2]
[326826906,1715463041962,-7576.123435,0.00012729,2]
[326826907,1715463041971,-11634.4,0.00012798,2]
[326826908,1715463041980,-1200.0,0.000128,4]
[326826909,1715463041990,-210.0,0.00012881,2]
[326826910,1715463041999,-210.0,0.00012881,2]
[326826911,1715463042008,-17149.094209,0.00012884,2]
[326826912,1715463042018,-275.3788,0.00012884,2]
[326826913,1715463042028,-4862.485855,0.00012884,2]
[326826914,1715463042039,-565.388727,0.00012884,2]
[326826915,1715463042049,-386.89277,0.00012884,2]
[326826916,1715463042059,-7576.123435,0.00012884,2]
[326826917,1715463042068,-200.0,0.00012896,2]
[326826918,1715463042077,-1000.0,0.00012896,2]
[326826919,1715463042087,-172.54228539,0.000129,2]
[326826920,1715463042096,-1600.0,0.000129,4]
[326826921,1715463042105,-171.06171806,0.000129,2]
[326826922,1715463042114,-429.3007719,0.000129,2]
[326826923,1715463042123,-3665.04800497,0.000129,2]
[326826924,1715463042132,-1716.88603878,0.000129,2]
[326826925,1715463042142,-426.5986037,0.000129,2]
[326826926,1715463042150,-255.81640456,0.000129,2]
[326826927,1715463042160,-2806.53109869,0.00012986,2]
[326826928,1715463042169,-151.48,0.0001299,2]
[326826929,1715463042178,-155.91324332,0.00012998,2]
[326826930,1715463042188,-265.97975764,0.00012998,2]
[326826931,1715463042197,-4737.626702,0.00012998,2]
[326826932,1715463042207,-317.27575734,0.00012998,2]
[326826933,1715463042215,-263.51865464,0.00012999,2]
[326826934,1715463042225,-150.01,0.00012999,2]
[326826935,1715463042234,-36737.96424827,0.00013,2]
[326826942,1715463043492,-239051.73585789,0.00013,2]
[326826943,1715463043502,-307943.98426351,0.00013,2]
[326826945,1715463046362,-302.22018432,0.00011654,2]
[326826946,1715463046376,-46434.60691278,0.00013,2]
[326826947,1715463046388,-53116.024,0.00013,2]
[326826948,1715463046421,-1832.78826,0.00013,2]
[326826949,1715463046433,-13583.87518621,0.00013,2]
[326826950,1715463046486,-101678.62799999,0.00013,2]
[326826951,1715463046497,-379.75349207,0.00013,2]
[326826952,1715463046509,-9323.77378296,0.00013,2]
[326826953,1715463046521,-117525.28510186,0.00013,2]
[326826954,1715463046532,-37331.02094005,0.00013,2]
[326826955,1715463046563,-811.406,0.00013,2]
[326826956,1715463046575,-897.58999998,0.00013,2]
[326826961,1715463344939,143902.62086938,0.0001099,2]
[326826962,1715463423616,13115.10676952,0.00012,30]
[326826967,1715463830913,276.0791,0.00011125,2]
[326826973,1715463951667,37837.1297611,0.00011125,2]
[326826974,1715463965664,19713.14460553,0.00011125,2]
[326826975,1715463983676,19713.14460553,0.00011125,2]
[326826976,1715464005671,19713.14460553,0.00011125,2]
[326826978,1715464029678,19713.14460553,0.00011125,2]
[326826979,1715464051691,19713.14460553,0.00011125,2]
[326826981,1715464071683,19713.14460553,0.00011125,2]
[326826982,1715464093792,19713.14460553,0.00011125,2]
[326826983,1715464109687,19713.14460553,0.00011125,2]
[326826984,1715464127685,19713.14460553,0.00011125,2]
[326826985,1715464145694,12645.62761068,0.00011125,2]
[326826986,1715464163183,-1052.52383292,0.00011203,2]
[326826987,1715464163204,-200.75109722,0.00011204,2]
[326826988,1715464163224,-3025.55522352,0.00011205,2]
[326826989,1715464163245,-1787.76004597,0.00011215,2]
[326826990,1715464163269,-1787.76004597,0.00011215,2]
[326826991,1715464163289,-155.97075349,0.00011219,2]
[326826992,1715464163311,-250.0,0.00011288,2]
[326826993,1715464163333,-7178.4805064,0.00011339,2]
[326827007,1715464231562,-109.8309332,0.00011339,2]
[326827008,1715464231572,-160.0,0.00011354,2]
[326827009,1715464231581,-155.0,0.00011365,2]
[326827010,1715464231590,-708.33036617,0.00011502,2]
[326827011,1715464231601,-954.76963383,0.00011502,2]
[326827012,1715464231610,-841.56,0.00011502,2]
[326827013,1715464231620,-250.0,0.00011507,2]
[326827014,1715464231629,-229.15693003,0.00011564,2]
[326827015,1715464231663,-2241.70844175,0.00011564,2]
[326827016,1715464231674,-21419.13462822,0.00011564,2]
[326827017,1715464231684,-12278.56,0.0001157,2]
[326827018,1715464231694,-277.77,0.0001161,2]
[326827019,1715464231704,-840.0,0.00011657,2]
[326827020,1715464231713,-164.25,0.00011657,2]
[326827021,1715464231723,-5870.68,0.00011662,2]
[326827022,1715464231733,-499.99,0.00011815,2]
[326827023,1715464231743,-577.54,0.00012055,2]
[326827024,1715464231751,-175.3,0.00012126,2]
[326827025,1715464231760,-828.14,0.00012329,2]
[326827026,1715464231770,-8415.16199051,0.00012341,2]
[326827027,1715464231778,-523.42,0.00012365,2]
[326827028,1715464231788,-300.0,0.00012365,2]
[326827029,1715464231796,-150.0,0.00012365,2]
[326827030,1715464231805,-523.42,0.00012365,2]
[326827031,1715464231813,-150.0,0.00012365,2]
[326827032,1715464231822,-523.42,0.00012365,2]
[326827033,1715464231831,-150.0,0.00012365,2]
[326827034,1715464231840,-150.0,0.00012365,2]
[326827035,1715464231850,-351.39,0.00012365,2]
[326827036,1715464231859,-150.0,0.00012365,2]
[326827037,1715464231867,-523.42,0.00012365,2]
[326827038,1715464231876,-523.42,0.00012365,2]
[326827039,1715464231885,-150.0,0.00012365,2]
[326827040,1715464231894,-1291.3552,0.00012528,2]
[326827041,1715464231903,-2666.6667,0.00012529,2]
[326827042,1715464231912,-443.34628286,0.00012627,2]
[326827043,1715464231921,-255.35173568,0.00012627,2]
[326827044,1715464231930,-798.06699917,0.00012627,2]
[326827045,1715464231939,-3023.5425618,0.00012627,2]
[326827046,1715464231948,-9467.73832695,0.00012628,2]
[326827047,1715464231957,-1683.315,0.00012628,2]
[326827048,1715464231967,-56396.57488119,0.00012629,2]
[326827049,1715464231994,-15857.78871881,0.00012629,2]
[326827050,1715464232003,-150.0,0.00012678,2]
[326827051,1715464232012,-1022.51435943,0.0001274,2]
[326827052,1715464232021,-160.0,0.00012773,2]
[326827054,1715464232030,-171.57842657,0.00012869,2]
[326827056,1715464232039,-2520.30735215,0.0001287,2]
[326827058,1715464232050,-20403.69089412,0.0001287,2]
[326827061,1715464232068,-578.5596183,0.0001287,2]
[326827067,1715464232110,-1916.80238943,0.0001287,2]
[326827069,1715464232121,-1178.45951756,0.0001287,2]
[326827071,1715464232132,-4611.58520454,0.0001287,2]
[326827104,1715464232410,-10143.62111693,0.0001287,2]
[326827115,1715464232522,-32673.45745094,0.0001287,2]
[326827117,1715464232532,-2372.78501,0.0001287,2]
[326827119,1715464232541,-167.17,0.00012883,2]
[326827121,1715464232550,-200.0,0.00012896,2]
[326827123,1715464232559,-465.25681,0.00012896,2]
[326827125,1715464232568,-203.5295398,0.00012898,2]
[326827127,1715464232577,-243.40932573,0.000129,2]
[326827144,1715464238666,-1250.0,0.000129,2]
[326827145,1715464239743,-5294.26547427,0.000129,2]
[326827146,1715464239752,-169.81216375,0.000129,2]
[326827147,1715464239761,-462.80857547,0.000129,2]
[326827148,1715464239770,-511.30237452,0.000129,2]
[326827149,1715464239779,-1000.0,0.000129,2]
[326827150,1715464239789,-10000.0,0.00012903,2]
[326827151,1715464239798,-500.0,0.00012935,2]
[326827152,1715464239807,-500.0,0.00012935,2]
[326827153,1715464239816,-500.0,0.00012935,2]
[326827154,1715464239825,-500.0,0.00012935,2]
[326827155,1715464239834,-560.9012,0.00012935,2]
[326827156,1715464239843,-1000.0,0.00012935,2]
[326827157,1715464239853,-1000.0,0.00012935,2]
[326827158,1715464239862,-1000.0,0.00012935,2]
[326827159,1715464239870,-1000.0,0.00012935,2]
[326827160,1715464239879,-1000.0,0.00012935,2]
[326827161,1715464239888,-1000.0,0.00012935,2]
[326827162,1715464239897,-1000.0,0.00012935,2]
[326827163,1715464239906,-1000.0,0.00012935,2]
[326827164,1715464239915,-1000.0,0.00012935,2]
[326827165,1715464239925,-1000.0,0.00012935,2]
[326827166,1715464239934,-1000.0,0.00012935,2]
[326827167,1715464239943,-1000.0,0.00012935,2]
[326827168,1715464239952,-1000.0,0.00012935,2]
[326827169,1715464239968,-1000.0,0.00012935,2]
[326827170,1715464239986,-1000.0,0.00012935,2]
[326827171,1715464240000,-1000.0,0.00012935,2]
[326827172,1715464240016,-1000.0,0.00012935,2]
[326827173,1715464240030,-1000.0,0.00012935,2]
[326827174,1715464240046,-1000.0,0.00012935,2]
[326827175,1715464240065,-1000.0,0.00012935,2]
[326827176,1715464240080,-1000.0,0.00012935,2]
[326827177,1715464240095,-1000.0,0.00012935,2]
[326827178,1715464240110,-1000.0,0.00012935,2]
[326827179,1715464240123,-1000.0,0.00012935,2]
[326827180,1715464240136,-1000.0,0.00012935,2]
[326827181,1715464240152,-1000.0,0.00012935,2]
[326827182,1715464240166,-1000.0,0.00012935,2]
[326827183,1715464240185,-1000.0,0.00012935,2]
[326827184,1715464240200,-1000.0,0.00012935,2]
[326827185,1715464240211,-1000.0,0.00012935,2]
[326827186,1715464240224,-1000.0,0.00012935,2]
[326827187,1715464240240,-1000.0,0.00012935,2]
[326827188,1715464240252,-1000.0,0.00012935,2]
[326827189,1715464240267,-1000.0,0.00012935,2]
[326827190,1715464240280,-1000.0,0.00012935,2]
[326827191,1715464240292,-1000.0,0.00012935,2]
[326827192,1715464240312,-1000.0,0.00012935,2]
[326827193,1715464240325,-1000.0,0.00012935,2]
[326827194,1715464240339,-286.0103,0.00012935,2]
[326827195,1715464240353,-150.0,0.00012952,2]
[326827196,1715464240365,-150.82,0.0001299,2]
[326827197,1715464240379,-150.82,0.0001299,2]
[326827198,1715464240392,-150.82,0.0001299,2]
[326827199,1715464240406,-3879.6790558,0.00012995,2]
[326827200,1715464240421,-64119.8085222,0.00012995,2]
[326827201,1715464240436,-248.20231284,0.00012998,2]
[326827202,1715464240449,-4732.93562249,0.00012998,2]
[326827203,1715464240463,-298.39421916,0.00012998,2]
[326827204,1715464240477,-265.47965823,0.00012998,2]
[326827205,1715464240490,-12789.43395238,0.00012999,2]
[326827206,1715464240504,-85487.8683588,0.00013,2]
[326827207,1715464240670,-1432.94767934,0.00013,2]
[326827208,1715464241816,-740.83310956,0.00013,2]
[326827213,1715464243003,-417.95220767,0.00013,2]
[326827214,1715464243061,-2982.56893852,0.00013,2]
[326827215,1715464243090,-426.36067428,0.000129,2]
[326827216,1715464243103,-157148.55980165,0.00013,2]
[326827217,1715464243116,-376374.62906482,0.00013,2]
[326827218,1715464243132,-15548.5786229,0.00013,2]
[326827222,1715464243163,-307943.98426351,0.00013,2]
[326827223,1715464243179,-6790.78450001,0.00013,2]
[326827225,1715464245621,-3248.3558,0.00013,2]
[326827226,1715464245632,-1825.79,0.00013,2]
[326827227,1715464245643,-7637.15837588,0.00013,2]
[326827228,1715464245654,-2007.98,0.00013,2]
[326827229,1715464245665,-7496.55257059,0.00013,2]
[326827230,1715464245676,-16869.73934652,0.00013,2]
[326827231,1715464245686,-5812.9,0.00013,2]
[326827232,1715464245821,-1246.86092123,0.00012999,2]
[326827233,1715464245830,-388.26899929,0.00013,2]
[326827234,1715464245841,-573.78514808,0.00013,2]
[326827235,1715464245852,-500.0,0.00013,2]
[326827236,1715464245863,-784.50318454,0.00013,2]
[326827237,1715464245893,-2008.00587715,0.00013,2]
[326827238,1715464245911,-125875.57247799,0.00013,2]
[326827239,1715464245923,-872.42505771,0.00013,2]
[326827240,1715464245934,-3555.70374447,0.00013,2]
[326827241,1715464245946,-669.896727,0.00013,2]
[326827242,1715464245958,-1719.30941048,0.00013,2]
[326827251,1715464908154,579.71058885,0.00011126,2]
[326827252,1715464915762,865.9150477,0.00011126,2]
[326827255,1715464953826,361.86937973,0.00011126,2]
[326827258,1715464967740,362.19733046,0.00011126,2]
[326827261,1715465066554,-250.0,0.00011217,2]
[326827262,1715465085762,-167.7191493,0.00011216,2]
[326827263,1715465119510,-409.86265904,0.00011215,2]
[326827264,1715465161937,-155.0,0.00011214,2]
[326827265,1715465194550,-150.0,0.00011213,2]
[326827266,1715465210272,-409.86265904,0.00011199,2]
[326827267,1715465348641,-167.7191493,0.00011196,2]
[326827268,1715465348726,-488.18975973,0.00011197,2]
[326827269,1715465351125,-2793.37443521,0.00011197,2]
[326827270,1715465351151,-150.0,0.00011197,2]
[326827271,1715465351171,-1852.0,0.00011198,2]
[326827272,1715465351193,-5558.18747015,0.00011198,2]
[326827273,1715465351214,-2615.69256448,0.00011199,2]
[326827274,1715465351236,-1029.3483259,0.000112,2]
[326827275,1715465351258,-250.0,0.00011324,2]
[326827276,1715465351281,-250.0,0.00011389,2]
[326827277,1715465351303,-164.25,0.00011389,2]
[326827278,1715465351325,-160.0,0.00011393,2]
[326827279,1715465351345,-150.0,0.00011394,2]
[326827280,1715465351365,-862.80750426,0.00011413,2]
[326827281,1715465354146,-500.0,0.00011339,2]
[326827282,1715465354169,-3153.91552945,0.00011413,2]
[326827283,1715465358705,229.59698858,0.00011097,2]
[326827284,1715465363736,229.59698857,0.00011098,2]
[326827285,1715465368707,229.59698857,0.00011098,2]
[326827291,1715465432116,-6894.36,0.00011417,2]
[326827292,1715465432126,-3779.57,0.0001144,2]
[326827293,1715465432135,-200.0,0.00011453,2]
[326827294,1715465432145,-156.956807,0.00011533,2]
[326827295,1715465432154,-644.92,0.00011612,2]
[326827296,1715465432163,-644.92,0.00011644,2]
[326827297,1715465432172,-644.92,0.00011676,2]
[326827298,1715465432181,-328.5,0.00011677,2]
[326827299,1715465432191,-165.34,0.00011692,2]
[326827300,1715465432199,-644.92,0.00011708,2]
[326827301,1715465432208,-644.92,0.00011739,2]
[326827302,1715465432217,-904.0,0.0001174,2]
[326827303,1715465432226,-644.92,0.00011771,2]
[326827304,1715465432234,-644.92,0.00011803,2]
[326827305,1715465432243,-644.92,0.00011835,2]
[326827306,1715465432252,-644.92,0.00011867,2]
[326827307,1715465432261,-701.66,0.00011878,2]
[326827308,1715465432270,-523.42,0.00011878,2]
[326827309,1715465432279,-150.0,0.00011878,2]
[326827310,1715465432289,-163.27,0.00011878,2]
[326827311,1715465432298,-644.92,0.00011899,2]
[326827312,1715465432307,-644.92,0.0001193,2]
[326827313,1715465432315,-644.92,0.00011962,2]
[326827314,1715465432325,-351.39,0.00011978,2]
[326827315,1715465432334,-878.16,0.00011978,2]
[326827316,1715465432343,-163.27,0.00011978,2]
[326827317,1715465432352,-150.0,0.00011978,2]
[326827318,1715465432361,-644.92,0.00011994,2]
[326827319,1715465432370,-163.27,0.00012,2]
[326827320,1715465432379,-523.42,0.00012,2]
[326827321,1715465432388,-150.0,0.00012,2]
[326827322,1715465432397,-351.39,0.00012,2]
[326827323,1715465432406,-644.92,0.00012026,2]
[326827324,1715465432415,-1000.0,0.00012044,2]
[326827325,1715465432423,-644.92,0.00012058,2]
[326827326,1715465432433,-644.92,0.0001209,2]
[326827327,1715465432441,-644.92,0.00012121,2]
[326827328,1715465432450,-644.92,0.00012153,2]
[326827329,1715465432459,-644.92,0.00012185,2]
[326827330,1715465432468,-644.92,0.00012217,2]
[326827331,1715465432477,-351.39,0.00012365,2]
[326827332,1715465432486,-163.27,0.00012365,2]
[326827333,1715465432495,-351.39,0.00012365,2]
[326827334,1715465432504,-278.0,0.00012365,2]
[326827335,1715465432513,-701.82,0.00012365,2]
[326827336,1715465432522,-523.42,0.00012378,2]
[326827337,1715465432532,-351.39,0.00012378,2]
[326827338,1715465432542,-163.27,0.00012378,2]
[326827339,1715465432551,-150.0,0.00012378,2]
[326827340,1715465432560,-150.0,0.000124,2]
[326827341,1715465432569,-351.39,0.000124,2]
[326827342,1715465432578,-163.27,0.000124,2]
[326827343,1715465432588,-351.39,0.000124,2]
[326827344,1715465432598,-351.39,0.000124,2]
[326827345,1715465432608,-163.27,0.000124,2]
[326827346,1715465432618,-150.0,0.000124,2]
[326827347,1715465432628,-351.39,0.000124,2]
[326827348,1715465432637,-1046.1,0.00012478,2]
[326827349,1715465432647,-198.81,0.00012478,2]
[326827350,1715465432658,-351.39,0.00012478,2]
[326827351,1715465432667,-150.0,0.00012478,2]
[326827352,1715465432676,-319.0,0.00012478,2]
[326827353,1715465432686,-669.0129911,0.00012522,2]
[326827354,1715465432695,-2885.5228,0.00012529,2]
[326827355,1715465432704,-10349.8897,0.00012529,2]
[326827356,1715465432714,-163.27,0.000126,2]
[326827357,1715465432723,-150.0,0.000126,2]
[326827358,1715465432731,-351.39,0.000126,2]
[326827359,1715465432740,-167.17,0.00012632,2]
[326827360,1715465432750,-150.0,0.000127,2]
[326827361,1715465432760,-163.27,0.000127,2]
[326827362,1715465432769,-1000.0,0.000127,2]
[326827363,1715465432778,-1375.0,0.000128,2]
[326827364,1715465432787,-252.02181648,0.00012868,2]
[326827365,1715465432797,-171.57842657,0.00012869,2]
[326827366,1715465432806,-1977.32084,0.0001287,2]
[326827367,1715465432816,-256.649,0.00012895,2]
[326827368,1715465432826,-494.0898,0.00012899,2]
[326827369,1715465432835,-2500.0,0.00012899,2]
[326827370,1715465432845,-397.35506741,0.00012899,2]
[326827371,1715465432855,-578.14165932,0.00012899,2]
[326827372,1715465432865,-397.35506738,0.00012899,2]
[326827373,1715465432874,-397.35506738,0.000129,2]
[326827374,1715465432883,-397.35506738,0.000129,2]
[326827375,1715465432893,-4865.95170713,0.000129,2]
[326827376,1715465432902,-223.03112784,0.000129,2]
[326827377,1715465432911,-397.35506738,0.000129,2]
[326827378,1715465432920,-173.31328606,0.000129,2]
[326827379,1715465432929,-1109.18605389,0.000129,2]
[326827380,1715465432938,-586.80644178,0.000129,2]
[326827381,1715465432947,-2289.18138504,0.000129,2]
[326827382,1715465432956,-185.76539648,0.00012989,2]
[326827383,1715465432965,-150.77,0.0001299,2]
[326827384,1715465432974,-150.77,0.0001299,2]
[326827385,1715465432984,-150.77,0.0001299,2]
[326827386,1715465432993,-150.77,0.0001299,2]
[326827387,1715465433003,-150.77,0.0001299,2]
[326827388,1715465433012,-150.77,0.0001299,2]
[326827389,1715465433021,-150.77,0.0001299,2]
[326827390,1715465433030,-150.77,0.0001299,2]
[326827391,1715465433040,-160.0,0.0001299,2]
[326827392,1715465433049,-535.07006962,0.00012993,2]
[326827393,1715465433059,-155.16963869,0.00012993,2]
[326827394,1715465433068,-155.0,0.00012993,2]
[326827395,1715465433078,-155.0,0.00012993,2]
[326827396,1715465433086,-409.86265904,0.00012993,2]
[326827397,1715465433095,-170.412667,0.00012993,2]
[326827398,1715465433104,-298.31658624,0.00012993,2]
[326827399,1715465433113,-369.86765503,0.00012993,2]
[326827400,1715465433122,-227.49697387,0.00012993,2]
[326827401,1715465433131,-3024.21344904,0.00012993,2]
[326827402,1715465433140,-355.91068806,0.00012993,2]
[326827403,1715465433149,-363.90234263,0.00012994,2]
[326827404,1715465433158,-581.21203293,0.00012994,2]
[326827405,1715465433167,-977.36903522,0.00012996,2]
[326827406,1715465433176,-155.0,0.00012996,2]
[326827407,1715465433185,-155.0,0.00012997,2]
[326827408,1715465433195,-1212.93169381,0.00012999,2]
[326827409,1715465433204,-2359.70945069,0.00012999,2]
[326827410,1715465433213,-4422.5548684,0.00012999,2]
[326827411,1715465433222,-406767.99406734,0.00012999,2]
[326827412,1715465433235,-13748.32483707,0.00012999,2]
[326827413,1715465433246,-654.28007,0.00012999,2]
[326827414,1715465433257,-1417.52663763,0.00012999,2]
[326827415,1715465433286,-264.25996,0.00012999,2]
[326827416,1715465433299,-313.92509782,0.00012999,2]
[326827417,1715465433334,-5000.0,0.00012999,2]
[326827418,1715465433347,-6271.58334344,0.00012999,2]
[326827419,1715465433371,-835.524,0.00012999,2]
[326827420,1715465433382,-1084.00000008,0.00012999,2]
[326827421,1715465433393,-774.64322652,0.00012999,2]
[326827422,1715465433405,-606.90853724,0.00012999,2]
[326827423,1715465433426,-150928.52215312,0.00012999,2]
[326827424,1715465433437,-5002.62750254,0.00012999,2]
[326827425,1715465433448,-439.64640536,0.00012999,2]
[326827432,1715465437812,-1187.29489231,0.00012999,2]
[326827433,1715465437874,-602.584341,0.00012999,2]
[326827434,1715465437885,-2330.4390412,0.00012999,2]
[326827435,1715465437933,-387.287,0.00012999,2]